fUSD/lending_fUSD_20240116
["ID","MTS","AMOUNT","RATE_DAILY","PERIOD"]
[311787900,1705389434450,-150.0,0.00022094,2]
[311787901,1705389441022,150.0,0.00021875,2]
[311787902,1705389441043,150.0,0.00021875,2]
[311787903,1705389441066,150.0,0.00021875,2]
[311787904,1705389441085,150.0,0.00021875,2]
[311787905,1705389441105,150.0,0.00021875,2]
[311787906,1705389441126,150.0,0.00021875,2]
[311787907,1705389441147,150.0,0.00021875,2]
[311787908,1705389441168,150.0,0.00021875,2]
[311787909,1705389441188,150.0,0.00021875,2]
[311787910,1705389441208,216.36651191,0.00021875,2]
[311787911,1705389441229,3239.59682225,0.00021875,2]
[311787912,1705389441381,300.0,0.00021342,2]
[311787913,1705389444596,-167.36,0.00022094,2]
[311787914,1705389453581,639.26185883,0.00020991,2]
[311787915,1705389453645,710.73814117,0.00021235,2]
[311787916,1705389453828,206.0,0.00021722,2]
[311787917,1705389456994,300.0,0.00021342,2]
[311787918,1705389457299,300.0,0.00021342,2]
[311787919,1705389457704,697.65794099,0.0002099,2]
[311787920,1705389458053,459.14,0.00021306,2]
[311787921,1705389459994,155.0,0.00021342,2]
[311787924,1705389494500,303.34641883,0.00021998,2]
[311787925,1705389513722,205.0,0.00021722,2]
[311787926,1705389516889,23900.0,0.00021268,2]
[311787927,1705389524155,603.28,0.00021268,2]
[311787930,1705389570807,260.03,0.00021277,2]
[311787931,1705389593346,500.0,0.00021918,2]
[311787932,1705389598933,155.33,0.00021266,2]
[311787933,1705389599125,155.33,0.00021378,2]
[311787934,1705389599319,155.33,0.0002149,2]
[311787935,1705389599702,155.33,0.00021602,2]
[311787936,1705389599906,155.33,0.00021714,2]
[311787937,1705389600109,155.33,0.00021826,2]
[311787938,1705389600313,155.33,0.00021938,2]
[311787939,1705389600712,155.33,0.0002205,2]
[311787940,1705389601665,616.24,0.00021266,2]
[311787941,1705389624582,250.0,0.00021918,2]
[311787942,1705389670289,158.68,0.00021436,2]
[311787943,1705389670329,158.68,0.00021808,2]
[311787944,1705389688543,265.42811645,0.00021998,2]
[311787945,1705389699167,13914.242,0.00021994,2]
[311787946,1705389716440,167.0,0.00021471,2]
[311787947,1705389735162,2500.0,0.00021918,3]
[311787948,1705389776863,172.23,0.00021241,2]
[311787949,1705389809668,273.47,0.00019336,2]
[311787950,1705389809873,273.47,0.000216,2]
[311787951,1705389812510,1371.0,0.00021878,2]
[311787952,1705389824537,2000.0,0.0002126,2]
[311787953,1705389882144,232.24960192,0.00021997,2]
[311787954,1705389911940,250.0,0.000205,2]
[311787955,1705389961403,23900.0,0.00021229,2]
[311787956,1705390003492,517.37,0.00021236,2]
[311787957,1705390014215,438.55,0.0002124,2]
[311787958,1705390017347,267.44,0.00021257,2]
[311787959,1705390061546,500.0,0.00021918,2]
[311787960,1705390068609,250.0,0.00021918,2]
[311787961,1705390072515,203.21840168,0.00021997,2]
[311787962,1705390130825,158.68,0.00021405,2]
[311787963,1705390131531,308.12,0.00021246,2]
[311787964,1705390141032,360.26072372,0.00017677,2]
[311787965,1705390143757,283.71200153,0.00021997,2]
[311787966,1705390146170,155.0,0.00021997,2]
[311787967,1705390149206,3185.21463735,0.00021212,2]
[311787968,1705390158964,1021.18031122,0.00021997,2]
[311787969,1705390159412,1100.00244564,0.00021997,2]
[311787970,1705390167926,176.98991788,0.00021997,2]
[311787971,1705390173925,206.0,0.00021636,2]
[311787972,1705390183054,531.5747491,0.00021997,2]
[311787973,1705390185641,176.9157047,0.00021997,2]
[311787974,1705390187956,2500.0,0.00021918,3]
[311787975,1705390200028,449.0,0.00021917,7]
[311787976,1705390206387,284.0,0.00021917,7]
[311787977,1705390207717,1547.46997487,0.00021997,2]
[311787978,1705390212995,15797.59576976,0.00021997,2]
[311787979,1705390213428,347.0,0.00021917,7]
[311787980,1705390217499,566.72678966,0.00021997,2]
[311787981,1705390226685,1031.79581061,0.00021997,2]
[311787982,1705390229742,858.14255332,0.00021997,2]
[311788004,1705390231331,-150.0,0.00022092,2]
[311788005,1705390231340,-300.0,0.00022092,2]
[311788006,1705390231349,-51.80908982,0.00022093,2]
[311788020,1705390231924,-902.18,0.00022093,2]
[311788021,1705390231955,-960.61039043,0.00022093,2]
[311788022,1705390231997,-1877.349234,0.00022093,2]
[311788026,1705390237540,-4245.84616659,0.00022093,2]
[311788027,1705390237599,-392.67000004,0.00022093,2]
[311788028,1705390237690,-1069.5,0.00022093,2]
[311788029,1705390237708,-306.979227,0.00022093,2]
[311788030,1705390237740,-119509.88706464,0.00022093,2]
[311788031,1705390237749,-50000.0,0.00022094,2]
[311788032,1705390237761,-2136.15568075,0.00022094,2]
[311788034,1705390237770,-561.44,0.00022094,2]
[311788036,1705390237779,-511.67578181,0.00022094,2]
[311788037,1705390237788,-500.0,0.00022094,2]
[311788038,1705390237798,-500.0,0.00022094,2]
[311788039,1705390237811,-500.0,0.00022094,2]
[311788040,1705390237820,-500.0,0.00022094,2]
[311788041,1705390237830,-500.0,0.00022094,2]
[311788042,1705390237839,-512.15,0.00022094,2]
[311788043,1705390237849,-500.0,0.00022094,2]
[311788044,1705390237858,-1107.22,0.00022094,2]
[311788045,1705390237868,-557.52,0.00022094,2]
[311788046,1705390237877,-500.0,0.00022094,2]
[311788047,1705390237887,-17709.71317732,0.00022095,2]
[311788048,1705390237897,-844.20155722,0.00022095,2]
[311788049,1705390237907,-6190.00923641,0.00022095,2]
[311788050,1705390237916,-240.49000621,0.00022095,2]
[311788051,1705390237926,-500.75697251,0.00022095,2]
[311788052,1705390237935,-2726.45,0.00022095,2]
[311788053,1705390237945,-16691.46,0.00022095,2]
[311788054,1705390237954,-1163.44,0.00022095,2]
[311788055,1705390237965,-651.11,0.00022095,2]
[311788056,1705390237975,-733.8,0.00022095,2]
[311788057,1705390237986,-1259.35,0.00022095,2]
[311788058,1705390237996,-500.0,0.00022095,2]
[311788059,1705390238008,-936.66,0.00022095,2]
[311788060,1705390238017,-1043.79,0.00022095,2]
[311788061,1705390238028,-762.91,0.00022095,2]
[311788062,1705390238038,-500.0,0.00022095,2]
[311788063,1705390238047,-500.0,0.00022095,2]
[311788064,1705390238057,-817.17,0.00022095,2]
[311788065,1705390238066,-507.89,0.00022095,2]
[311788066,1705390238075,-1974.23,0.00022095,2]
[311788067,1705390238085,-1135.85,0.00022095,2]
[311788068,1705390238094,-730.95,0.00022095,2]
[311788069,1705390238103,-500.0,0.00022095,2]
[311788070,1705390238114,-500.0,0.00022095,2]
[311788071,1705390238123,-908.34,0.00022095,2]
[311788072,1705390238132,-9440.98,0.00022095,2]
[311788073,1705390238142,-893.3,0.00022095,2]
[311788074,1705390238151,-864.16,0.00022095,2]
[311788075,1705390238160,-711.52,0.00022095,2]
[311788076,1705390238171,-2741.52,0.00022095,2]
[311788077,1705390238180,-1009.47,0.00022095,2]
[311788078,1705390238190,-892.82,0.00022095,2]
[311788079,1705390238206,-1257.34,0.00022095,2]
[311788080,1705390238215,-1092.22,0.00022095,2]
[311788081,1705390238225,-823.91,0.00022095,2]
[311788082,1705390238234,-500.0,0.00022095,2]
[311788083,1705390238245,-1116.1,0.00022095,2]
[311788084,1705390238256,-933.58,0.00022095,2]
[311788085,1705390238265,-784.3,0.00022095,2]
[311788086,1705390238275,-480.0,0.00022095,2]
[311788087,1705390238284,-1476.37,0.00022095,2]
[311788088,1705390238294,-685.72,0.00022095,2]
[311788089,1705390238304,-2862.03,0.00022095,2]
[311788090,1705390238313,-541.94,0.00022095,2]
[311788091,1705390238323,-584.7,0.00022095,2]
[311788092,1705390238332,-790.59,0.00022095,2]
[311788093,1705390238347,-802.3,0.00022095,2]
[311788094,1705390238358,-1348.93,0.00022095,2]
[311788095,1705390238368,-500.0,0.00022095,2]
[311788096,1705390238377,-315.08540405,0.00022096,2]
[311788097,1705390238387,-233.50940644,0.00022096,2]
[311788098,1705390238397,-221.55945487,0.00022096,2]
[311788099,1705390238407,-417.66498521,0.00022096,2]
[311788100,1705390238417,-178.44917577,0.00022096,2]
[311788101,1705390238426,-361.53414999,0.00022096,2]
[311788102,1705390238436,-163.0052242,0.00022096,2]
[311788103,1705390238445,-212.47737194,0.00022096,2]
[311788104,1705390238455,-290.03874288,0.00022096,2]
[311788105,1705390238464,-700.1812019,0.00022096,2]
[311788106,1705390238474,-500.0,0.00022096,5]
[311788107,1705390238483,-590.42,0.00022096,2]
[311788108,1705390238493,-2999.63,0.00022096,2]
[311788109,1705390238504,-6105.3,0.00022096,2]
[311788110,1705390238514,-2234.66,0.00022096,2]
[311788111,1705390238524,-794.81,0.00022096,2]
[311788112,1705390238534,-696.49,0.00022096,2]
[311788113,1705390238543,-5937.41,0.00022096,2]
[311788114,1705390238553,-2047.36,0.00022096,2]
[311788115,1705390238563,-500.0,0.00022096,2]
[311788116,1705390238573,-742.91,0.00022096,2]
[311788117,1705390238583,-1831.91,0.00022096,2]
[311788118,1705390238592,-1652.81,0.00022096,2]
[311788119,1705390238603,-1187.32,0.00022096,2]
[311788120,1705390238612,-250.0,0.00022096,2]
[311788121,1705390238621,-3731.4,0.00022096,2]
[311788122,1705390238631,-1068.78,0.00022096,2]
[311788123,1705390238641,-2206.96,0.00022096,2]
[311788124,1705390238650,-500.0,0.00022096,2]
[311788125,1705390238659,-4493.98,0.00022096,2]
[311788126,1705390238669,-500.0,0.00022096,2]
[311788127,1705390238678,-1001.31,0.00022096,2]
[311788128,1705390238688,-1700.36,0.00022096,2]
[311788129,1705390238698,-835.7,0.00022096,2]
[311788130,1705390238708,-1105.04,0.00022096,2]
[311788131,1705390238717,-811.59,0.00022096,2]
[311788132,1705390238727,-500.0,0.00022096,2]
[311788133,1705390238736,-745.6,0.00022096,2]
[311788134,1705390238746,-885.13,0.00022096,2]
[311788135,1705390238756,-1066.16,0.00022096,2]
[311788136,1705390238766,-2172.43,0.00022096,2]
[311788137,1705390238775,-2642.86,0.00022096,2]
[311788138,1705390238784,-500.0,0.00022096,2]
[311788139,1705390238794,-1671.2,0.00022096,2]
[311788140,1705390238803,-938.21,0.00022096,2]
[311788141,1705390238813,-1231.09,0.00022096,2]
[311788142,1705390238822,-254.02,0.00022096,2]
[311788143,1705390238831,-718.01,0.00022096,2]
[311788144,1705390238841,-773.08,0.00022096,2]
[311788145,1705390238850,-816.68,0.00022096,2]
[311788146,1705390238859,-1388.71,0.00022096,2]
[311788147,1705390238868,-500.0,0.00022096,2]
[311788148,1705390238878,-2646.62,0.00022096,2]
[311788149,1705390238887,-1116.43,0.00022096,2]
[311788150,1705390238896,-733.39,0.00022096,2]
[311788151,1705390238907,-500.0,0.00022096,2]
[311788152,1705390238918,-1777.04,0.00022096,2]
[311788153,1705390238929,-1900.24,0.00022096,2]
[311788154,1705390238940,-500.0,0.00022096,2]
[311788155,1705390238950,-3841.16,0.00022096,2]
[311788156,1705390238962,-5479.66,0.00022096,2]
[311788157,1705390238972,-1031.4,0.00022096,2]
[311788158,1705390238982,-5881.1,0.00022096,2]
[311788159,1705390238992,-500.0,0.00022096,2]
[311788160,1705390239005,-922.08,0.00022096,2]
[311788161,1705390239014,-500.0,0.00022097,2]
[311788162,1705390239023,-500.0,0.00022097,2]
[311788163,1705390239034,-500.0,0.00022097,2]
[311788164,1705390239045,-677.61,0.00022097,2]
[311788165,1705390239055,-500.0,0.00022097,2]
[311788166,1705390239068,-574.96,0.00022097,2]
[311788167,1705390239077,-579.89,0.00022097,2]
[311788168,1705390239087,-500.0,0.00022097,2]
[311788169,1705390239096,-513.19,0.00022097,2]
[311788170,1705390239105,-500.0,0.00022097,2]
[311788171,1705390239114,-500.0,0.00022097,2]
[311788172,1705390239123,-500.0,0.00022097,2]
[311788173,1705390239133,-500.0,0.00022097,2]
[311788174,1705390239143,-500.0,0.00022097,2]
[311788175,1705390239152,-574.31,0.00022097,2]
[311788176,1705390239163,-500.0,0.00022097,2]
[311788177,1705390239175,-500.0,0.00022097,2]
[311788178,1705390239185,-500.0,0.00022097,2]
[311788179,1705390239194,-500.0,0.00022097,2]
[311788180,1705390239206,-500.0,0.00022097,2]
[311788181,1705390239216,-500.0,0.00022097,2]
[311788182,1705390239227,-1037.93,0.00022097,2]
[311788183,1705390239237,-500.0,0.00022097,2]
[311788184,1705390239247,-585.2,0.00022097,2]
[311788185,1705390239258,-500.0,0.00022097,2]
[311788186,1705390239268,-500.0,0.00022097,2]
[311788187,1705390239279,-500.0,0.00022097,2]
[311788188,1705390239290,-500.0,0.00022097,2]
[311788189,1705390239300,-529.12,0.00022097,2]
[311788190,1705390239309,-500.0,0.00022097,2]
[311788191,1705390239319,-500.0,0.00022097,2]
[311788192,1705390239329,-500.17,0.00022097,2]
[311788193,1705390239338,-500.0,0.00022097,2]
[311788194,1705390239348,-500.0,0.00022097,2]
[311788195,1705390239358,-500.0,0.00022097,2]
[311788196,1705390239367,-500.0,0.00022097,2]
[311788197,1705390239376,-500.0,0.00022097,2]
[311788198,1705390239386,-500.0,0.00022097,7]
[311788199,1705390239395,-500.0,0.00022097,2]
[311788200,1705390239405,-500.0,0.00022097,2]
[311788201,1705390239414,-500.0,0.00022097,2]
[311788202,1705390239424,-500.0,0.00022097,2]
[311788203,1705390239433,-500.0,0.00022097,2]
[311788204,1705390239443,-568.14,0.00022097,2]
[311788205,1705390239452,-500.0,0.00022097,2]
[311788206,1705390239462,-500.0,0.00022097,2]
[311788207,1705390239471,-936.62,0.00022097,2]
[311788208,1705390239481,-500.0,0.00022097,2]
[311788209,1705390239492,-500.0,0.00022097,2]
[311788210,1705390239501,-500.0,0.00022097,2]
[311788211,1705390239514,-530.75,0.00022097,2]
[311788212,1705390239523,-500.0,0.00022097,2]
[311788213,1705390239533,-500.0,0.00022097,2]
[311788214,1705390239542,-500.0,0.00022097,2]
[311788215,1705390239552,-500.0,0.00022097,2]
[311788216,1705390239561,-806.26,0.00022097,2]
[311788217,1705390239570,-500.0,0.00022097,2]
[311788218,1705390239580,-500.0,0.00022097,2]
[311788219,1705390239590,-500.0,0.00022097,2]
[311788220,1705390239600,-525.21,0.00022097,2]
[311788221,1705390239610,-500.0,0.00022097,2]
[311788222,1705390239620,-500.0,0.00022097,2]
[311788223,1705390239630,-500.0,0.00022097,2]
[311788224,1705390239640,-173.49719077,0.00022097,2]
[311788225,1705390239650,-500.0,0.00022097,2]
[311788226,1705390239660,-500.0,0.00022097,2]
[311788227,1705390239672,-150.0,0.00022097,2]
[311788228,1705390239682,-500.0,0.00022097,2]
[311788229,1705390239693,-500.0,0.00022097,2]
[311788230,1705390239703,-500.0,0.00022097,2]
[311788231,1705390239714,-500.0,0.00022097,2]
[311788232,1705390239980,-500.0,0.00022097,2]
[311788233,1705390239997,-518.33,0.00022097,2]
[311788234,1705390240007,-500.0,0.00022097,2]
[311788235,1705390240016,-500.0,0.00022097,2]
[311788236,1705390240026,-633.4,0.00022097,2]
[311788237,1705390240035,-500.0,0.00022097,2]
[311788238,1705390240044,-678.72,0.00022097,2]
[311788239,1705390240054,-4134.43,0.00022097,2]
[311788240,1705390240063,-621.85,0.00022097,2]
[311788241,1705390240073,-1476.04,0.00022097,2]
[311788242,1705390240083,-500.0,0.00022097,2]
[311788243,1705390240093,-1386.62,0.00022097,2]
[311788244,1705390240103,-500.0,0.00022097,2]
[311788245,1705390240113,-500.0,0.00022097,2]
[311788246,1705390240122,-500.0,0.00022097,2]
[311788247,1705390240134,-500.0,0.00022097,2]
[311788248,1705390240144,-841.77,0.00022097,2]
[311788249,1705390240154,-500.0,0.00022097,2]
[311788250,1705390240164,-1100.8,0.00022097,2]
[311788251,1705390240174,-500.0,0.00022097,2]
[311788252,1705390240183,-500.0,0.00022097,2]
[311788253,1705390240195,-589.93,0.00022097,2]
[311788254,1705390240207,-700.19,0.00022097,2]
[311788255,1705390240217,-500.0,0.00022097,2]
[311788256,1705390240227,-641.32,0.00022097,2]
[311788257,1705390240237,-627.4,0.00022097,2]
[311788258,1705390240248,-1827.95,0.00022097,2]
[311788259,1705390240258,-500.0,0.00022097,2]
[311788260,1705390240267,-500.0,0.00022097,2]
[311788261,1705390240279,-500.0,0.00022097,2]
[311788262,1705390240289,-2481.46,0.00022097,2]
[311788263,1705390240299,-500.0,0.00022097,2]
[311788264,1705390240308,-764.53,0.00022097,2]
[311788265,1705390240317,-500.0,0.00022097,2]
[311788266,1705390240327,-1053.92,0.00022097,2]
[311788267,1705390240337,-500.0,0.00022097,2]
[311788268,1705390240346,-500.0,0.00022097,5]
[311788269,1705390240356,-2487.51,0.00022097,2]
[311788270,1705390240365,-500.0,0.00022097,2]
[311788271,1705390240374,-500.0,0.00022097,2]
[311788272,1705390240384,-500.0,0.00022097,2]
[311788273,1705390240393,-2454.61,0.00022097,2]
[311788274,1705390240403,-500.0,0.00022097,2]
[311788275,1705390240413,-672.93,0.00022097,2]
[311788276,1705390240422,-588.50443531,0.00022097,2]
[311788277,1705390240431,-508.91,0.00022097,2]
[311788278,1705390240441,-1551.22,0.00022097,2]
[311788279,1705390240451,-563.88,0.00022097,2]
[311788280,1705390240462,-500.0,0.00022097,2]
[311788281,1705390240472,-600.22481434,0.00022097,2]
[311788282,1705390240482,-555.5,0.00022097,2]
[311788283,1705390240492,-1008.43,0.00022097,2]
[311788284,1705390240503,-500.0,0.00022097,2]
[311788285,1705390240513,-1026.78,0.00022097,2]
[311788286,1705390240522,-682.93,0.00022097,2]
[311788287,1705390240532,-500.0,0.00022097,2]
[311788288,1705390240543,-2773.7,0.00022097,2]
[311788289,1705390240553,-711.67,0.00022097,2]
[311788290,1705390240565,-500.0,0.00022097,2]
[311788291,1705390240576,-500.0,0.00022097,2]
[311788292,1705390240585,-602.38,0.00022097,2]
[311788293,1705390240595,-1281.14,0.00022097,2]
[311788294,1705390240606,-500.0,0.00022097,2]
[311788295,1705390240615,-500.0,0.00022097,2]
[311788296,1705390240625,-540.07,0.00022097,2]
[311788297,1705390240634,-798.29,0.00022097,2]
[311788298,1705390240644,-527.4,0.00022097,2]
[311788299,1705390240654,-500.0,0.00022098,2]
[311788300,1705390240664,-500.0,0.00022098,2]
[311788301,1705390240673,-500.0,0.00022098,2]
[311788302,1705390240683,-500.0,0.00022098,2]
[311788303,1705390240693,-500.0,0.00022098,2]
[311788304,1705390240703,-500.0,0.00022098,2]
[311788305,1705390240713,-500.0,0.00022098,2]
[311788306,1705390240722,-500.0,0.00022098,2]
[311788307,1705390240731,-500.0,0.00022098,2]
[311788308,1705390240741,-500.0,0.00022098,2]
[311788309,1705390240751,-500.0,0.00022098,2]
[311788310,1705390240761,-500.0,0.00022098,2]
[311788311,1705390240770,-571.02,0.00022098,2]
[311788312,1705390240781,-500.0,0.00022098,2]
[311788313,1705390240791,-500.0,0.00022098,2]
[311788314,1705390240801,-500.0,0.00022098,2]
[311788315,1705390240811,-500.0,0.00022098,2]
[311788316,1705390240821,-706.78,0.00022098,2]
[311788317,1705390240830,-590.06920447,0.00022098,2]
[311788318,1705390240840,-500.0,0.00022098,2]
[311788319,1705390240850,-500.0,0.00022098,2]
[311788320,1705390240859,-500.0,0.00022098,2]
[311788321,1705390240869,-500.0,0.00022098,2]
[311788322,1705390240878,-500.0,0.00022098,2]
[311788323,1705390240889,-500.0,0.00022098,2]
[311788324,1705390240898,-500.0,0.00022098,2]
[311788325,1705390240907,-261.32334078,0.00022098,2]
[311788326,1705390240917,-500.0,0.00022098,2]
[311788327,1705390240926,-500.0,0.00022098,2]
[311788328,1705390240936,-500.0,0.00022098,2]
[311788329,1705390240946,-500.0,0.00022098,2]
[311788330,1705390240956,-500.0,0.00022098,2]
[311788331,1705390240965,-500.0,0.00022098,2]
[311788332,1705390240975,-500.0,0.00022098,2]
[311788333,1705390240987,-500.0,0.00022098,2]
[311788334,1705390240998,-500.0,0.00022098,2]
[311788335,1705390241008,-500.0,0.00022098,2]
[311788336,1705390241017,-500.0,0.00022098,2]
[311788337,1705390241027,-500.0,0.00022098,2]
[311788338,1705390241036,-500.0,0.00022098,2]
[311788339,1705390241045,-500.0,0.00022098,2]
[311788340,1705390241055,-500.0,0.00022098,2]
[311788341,1705390241065,-500.0,0.00022098,2]
[311788342,1705390241074,-500.0,0.00022098,2]
[311788343,1705390241083,-500.0,0.00022098,2]
[311788344,1705390241094,-500.0,0.00022098,2]
[311788345,1705390241104,-500.0,0.00022098,2]
[311788346,1705390241113,-500.0,0.00022098,2]
[311788347,1705390241122,-500.0,0.00022098,2]
[311788348,1705390241132,-500.0,0.00022098,2]
[311788349,1705390241141,-500.0,0.00022098,2]
[311788350,1705390241150,-893.58,0.00022098,2]
[311788351,1705390241159,-500.0,0.00022098,2]
[311788352,1705390241168,-500.0,0.00022098,2]
[311788353,1705390241177,-468.9790765,0.00022098,2]
[311788354,1705390241186,-500.0,0.00022098,2]
[311788355,1705390241195,-500.0,0.00022098,2]
[311788356,1705390241204,-500.0,0.00022098,2]
[311788357,1705390241213,-500.0,0.00022098,2]
[311788358,1705390241223,-500.0,0.00022098,2]
[311788359,1705390241233,-500.0,0.00022098,2]
[311788360,1705390241242,-500.0,0.00022098,2]
[311788361,1705390241251,-500.0,0.00022098,2]
[311788362,1705390241262,-500.0,0.00022098,2]
[311788363,1705390241271,-500.0,0.00022098,2]
[311788364,1705390241280,-500.0,0.00022098,2]
[311788365,1705390241289,-500.0,0.00022098,2]
[311788366,1705390241298,-500.0,0.00022098,2]
[311788367,1705390241308,-500.0,0.00022098,2]
[311788368,1705390241317,-500.0,0.00022098,2]
[311788369,1705390241327,-504.05984524,0.00022098,2]
[311788370,1705390241336,-500.0,0.00022098,2]
[311788371,1705390241346,-500.0,0.00022098,2]
[311788372,1705390241355,-500.0,0.00022098,2]
[311788373,1705390241365,-500.0,0.00022098,2]
[311788374,1705390241375,-500.0,0.00022098,2]
[311788375,1705390241385,-786.73,0.00022098,2]
[311788376,1705390241395,-536.64,0.00022098,2]
[311788377,1705390241404,-500.0,0.00022098,2]
[311788378,1705390241413,-500.0,0.00022098,2]
[311788379,1705390241424,-500.0,0.00022098,2]
[311788380,1705390241433,-500.0,0.00022098,2]
[311788381,1705390241443,-778.49,0.00022098,2]
[311788382,1705390241454,-500.0,0.00022098,2]
[311788383,1705390241463,-500.0,0.00022098,2]
[311788384,1705390241473,-500.0,0.00022098,2]
[311788385,1705390241482,-500.0,0.00022098,2]
[311788386,1705390241492,-625.37,0.00022098,2]
[311788387,1705390241501,-500.0,0.00022098,2]
[311788388,1705390241513,-500.0,0.00022098,2]
[311788389,1705390241522,-500.0,0.00022098,2]
[311788390,1705390241532,-645.71,0.00022098,2]
[311788391,1705390241541,-500.0,0.00022098,2]
[311788392,1705390241551,-500.0,0.00022098,2]
[311788393,1705390241560,-500.0,0.00022098,2]
[311788394,1705390241570,-500.0,0.00022098,2]
[311788395,1705390241579,-500.0,0.00022098,2]
[311788396,1705390241589,-1174.73,0.00022098,2]
[311788397,1705390241598,-500.0,0.00022098,2]
[311788398,1705390241607,-500.0,0.00022098,2]
[311788399,1705390241616,-500.0,0.00022098,2]
[311788400,1705390241626,-500.0,0.00022098,2]
[311788401,1705390241635,-500.0,0.00022098,2]
[311788402,1705390241644,-500.0,0.00022098,2]
[311788403,1705390241654,-500.0,0.00022098,2]
[311788404,1705390241663,-500.0,0.00022098,2]
[311788405,1705390241672,-515.88,0.00022098,2]
[311788406,1705390241681,-1065.25,0.00022098,2]
[311788407,1705390241691,-500.0,0.00022098,2]
[311788408,1705390241700,-500.0,0.00022098,2]
[311788409,1705390241710,-500.0,0.00022098,2]
[311788410,1705390241720,-500.0,0.00022098,2]
[311788411,1705390241730,-500.0,0.00022098,2]
[311788412,1705390241739,-555.3,0.00022098,2]
[311788413,1705390241748,-500.0,0.00022098,2]
[311788414,1705390241758,-500.0,0.00022098,2]
[311788415,1705390241769,-514.31292017,0.00022098,2]
[311788416,1705390241779,-659.15,0.00022098,2]
[311788417,1705390241790,-500.0,0.00022098,2]
[311788418,1705390241801,-543.75,0.00022098,2]
[311788419,1705390241811,-500.0,0.00022098,2]
[311788420,1705390241822,-500.0,0.00022098,2]
[311788421,1705390241833,-939.73,0.00022098,2]
[311788422,1705390241843,-500.0,0.00022098,2]
[311788423,1705390241854,-500.0,0.00022098,2]
[311788424,1705390241863,-500.0,0.00022098,2]
[311788425,1705390241873,-500.0,0.00022098,2]
[311788426,1705390241882,-707.91,0.00022098,2]
[311788427,1705390241892,-513.01,0.00022098,2]
[311788428,1705390241901,-500.0,0.00022098,2]
[311788429,1705390241910,-500.0,0.00022098,2]
[311788430,1705390241919,-500.0,0.00022098,2]
[311788431,1705390241928,-500.0,0.00022098,2]
[311788432,1705390241938,-500.0,0.00022098,2]
[311788433,1705390241947,-500.0,0.00022098,2]
[311788434,1705390241957,-500.0,0.00022098,2]
[311788435,1705390241966,-165.52134064,0.00022098,2]
[311788436,1705390241976,-500.0,0.00022098,2]
[311788437,1705390241984,-500.0,0.00022098,2]
[311788438,1705390241994,-537.88,0.00022098,2]
[311788439,1705390242003,-500.0,0.00022098,2]
[311788440,1705390242013,-500.0,0.00022098,2]
[311788441,1705390242022,-607.86,0.00022098,2]
[311788442,1705390242031,-500.0,0.00022098,2]